fUSD/lending_fUSD_20240121
["ID","MTS","AMOUNT","RATE_DAILY","PERIOD"]
[312429796,1705871442824,-150.0,0.00035177,7]
[312429797,1705871442833,-150.0,0.00035177,7]
[312429798,1705871442842,-150.8623145,0.00035208,2]
[312429799,1705871442852,-1948.84517,0.00035342,2]
[312429800,1705871442862,-3410.34289108,0.000354,8]
[312429801,1705871442871,-4909.79030899,0.00035637,2]
[312429802,1705871442880,-153.02,0.000357,3]
[312429803,1705871442889,-152.33044919,0.00035708,2]
[312429804,1705871442898,-156.25,0.00035788,2]
[312429805,1705871442908,-241.18,0.000358,7]
[312429806,1705871442917,-169.64,0.000358,7]
[312429807,1705871442926,-172.72,0.000358,7]
[312429808,1705871442936,-500.0,0.000359,2]
[312429809,1705871442945,-150.473528,0.000359,2]
[312429810,1705871442954,-150.0,0.000359,2]
[312429811,1705871442963,-1000.0,0.00036,6]
[312429814,1705871442973,-439.64576117,0.00036102,7]
[312429816,1705871442982,-150.8623145,0.00036248,2]
[312429819,1705871442992,-411.69,0.00036613,15]
[312429822,1705871443002,-3006.4397571,0.00036744,2]
[312429825,1705871443011,-2000.0,0.00036893,4]
[312429828,1705871443020,-700.0,0.00037,2]
[312429831,1705871443029,-1000.0,0.00037,7]
[312429833,1705871443038,-3798.45108986,0.00037013,11]
[312429836,1705871443047,-4309.00264975,0.00037013,11]
[312429838,1705871443056,-2639.16290755,0.00037013,10]
[312429840,1705871443065,-3410.34289108,0.0003721,10]
[312429842,1705871443074,-150.8623145,0.00037287,2]
[312429843,1705871443084,-271.03,0.00037295,2]
[312429844,1705871443094,-156.25,0.00037671,2]
[312429845,1705871443104,-500.0,0.00037808,2]
[312429846,1705871443114,-500.0,0.00037808,2]
[312429847,1705871443123,-500.0,0.00037808,2]
[312429848,1705871443133,-500.0,0.00037808,2]
[312429849,1705871443142,-500.0,0.00037808,2]
[312429850,1705871443151,-500.0,0.00037808,2]
[312429851,1705871443160,-250.0,0.00037808,2]
[312429852,1705871443169,-500.0,0.00037808,2]
[312429853,1705871443179,-500.0,0.00037808,2]
[312429854,1705871443188,-500.0,0.00037808,2]
[312429855,1705871443197,-500.0,0.00037808,2]
[312429856,1705871443206,-500.0,0.00037808,2]
[312429857,1705871443216,-500.0,0.00037808,2]
[312429858,1705871443225,-500.0,0.00037808,2]
[312429859,1705871443235,-500.0,0.00037808,2]
[312429860,1705871443244,-500.0,0.00037808,2]
[312429861,1705871443253,-500.0,0.00037808,2]
[312429862,1705871443263,-500.0,0.00037808,2]
[312429863,1705871443272,-500.0,0.00037808,2]
[312429864,1705871443282,-500.0,0.00037808,2]
[312429865,1705871443291,-500.0,0.00037808,2]
[312429866,1705871443301,-500.0,0.00037808,2]
[312429867,1705871443310,-500.0,0.00037808,2]
[312429868,1705871443319,-500.0,0.00037808,2]
[312429869,1705871443328,-500.0,0.00037808,2]
[312429870,1705871443338,-500.0,0.00037808,2]
[312429871,1705871443350,-500.0,0.00037808,2]
[312429872,1705871443359,-500.0,0.00037808,2]
[312429873,1705871443369,-500.0,0.00037808,2]
[312429874,1705871443379,-500.0,0.00037808,2]
[312429875,1705871443389,-500.0,0.00037808,2]
[312429876,1705871443399,-500.0,0.00037808,2]
[312429877,1705871443409,-500.0,0.00037808,2]
[312429878,1705871443420,-500.0,0.00037808,2]
[312429879,1705871443430,-500.0,0.00037808,2]
[312429880,1705871443439,-500.0,0.00037808,2]
[312429881,1705871443448,-500.0,0.00037808,2]
[312429882,1705871443457,-500.0,0.00037808,2]
[312429883,1705871443467,-500.0,0.00037808,2]
[312429884,1705871443476,-500.0,0.00037808,2]
[312429885,1705871443485,-500.0,0.00037808,2]
[312429886,1705871443494,-500.0,0.00037808,2]
[312429887,1705871443503,-500.0,0.00037808,2]
[312429888,1705871443513,-500.0,0.00037808,2]
[312429889,1705871443522,-500.0,0.00037808,2]
[312429890,1705871443531,-500.0,0.00037808,2]
[312429891,1705871443540,-500.0,0.00037808,2]
[312429892,1705871443549,-500.0,0.00037808,2]
[312429893,1705871443558,-500.0,0.00037808,2]
[312429894,1705871443567,-500.0,0.00037808,2]
[312429895,1705871443576,-500.0,0.00037808,2]
[312429896,1705871443585,-500.0,0.00037808,2]
[312429897,1705871443595,-500.0,0.00037808,2]
[312429898,1705871443604,-500.0,0.00037808,2]
[312429899,1705871443614,-500.0,0.00037808,2]
[312429900,1705871443623,-500.0,0.00037808,2]
[312429901,1705871443632,-500.0,0.00037808,2]
[312429902,1705871443641,-500.0,0.00037808,2]
[312429903,1705871443652,-500.0,0.00037808,2]
[312429904,1705871443661,-500.0,0.00037808,2]
[312429905,1705871443671,-500.0,0.00037808,2]
[312429906,1705871443683,-8111.15,0.00037808,2]
[312429907,1705871443692,-2335.48,0.00037808,2]
[312429908,1705871443701,-365.0,0.0003789,3]
[312429909,1705871443711,-178.13967446,0.00037899,2]
[312429910,1705871443721,-12210.49816197,0.00037899,2]
[312429911,1705871443730,-3734.93743481,0.00037899,2]
[312429912,1705871443740,-464.48300441,0.00037899,2]
[312429913,1705871443750,-282.72,0.000379,2]
[312429914,1705871443759,-656250.015613,0.000379,3]
[312429915,1705871443769,-300.0,0.00037999,2]
[312429916,1705871443778,-300.0,0.00037999,2]
[312429917,1705871443788,-300.0,0.00037999,2]
[312429918,1705871443798,-300.0,0.00037999,2]
[312429919,1705871443807,-300.0,0.00037999,2]
[312429920,1705871443817,-189.24943045,0.00037999,2]
[312429921,1705871443827,-241.18,0.00038,7]
[312429922,1705871443837,-172.72,0.00038,7]
[312429923,1705871443846,-1000.0,0.00038,8]
[312429924,1705871443856,-153.02,0.000383,3]
[312429925,1705871443865,-153.02,0.000383,3]
[312429926,1705871443874,-150.8623145,0.00038327,2]
[312429927,1705871443883,-500.0,0.000386,2]
[312429928,1705871443893,-4529.71684406,0.00038709,28]
[312429929,1705871443902,-500.0,0.00038709,2]
[312429930,1705871443911,-500.0,0.00038709,2]
[312429931,1705871443919,-500.0,0.00038709,2]
[312429932,1705871443929,-500.0,0.00038709,2]
[312429933,1705871443938,-500.0,0.00038709,2]
[312429934,1705871443947,-500.0,0.00038709,2]
[312429935,1705871443956,-500.0,0.00038709,2]
[312429936,1705871443965,-500.0,0.00038709,2]
[312429937,1705871443975,-500.0,0.00038709,2]
[312429938,1705871443984,-500.0,0.00038709,2]
[312429939,1705871443993,-500.0,0.00038709,2]
[312429940,1705871444002,-500.0,0.00038709,2]
[312429941,1705871444011,-500.0,0.00038709,2]
[312429942,1705871444020,-500.0,0.00038709,2]
[312429943,1705871444029,-500.0,0.00038709,2]
[312429944,1705871444038,-500.0,0.00038709,2]
[312429945,1705871444047,-500.0,0.00038709,2]
[312429946,1705871444056,-500.0,0.00038709,2]
[312429947,1705871444065,-500.0,0.00038709,2]
[312429948,1705871444074,-500.0,0.00038709,2]
[312429949,1705871444083,-500.0,0.00038709,2]
[312429950,1705871444094,-500.0,0.00038709,2]
[312429951,1705871444104,-500.0,0.00038709,2]
[312429952,1705871444113,-500.0,0.00038709,2]
[312429953,1705871444122,-500.0,0.00038709,2]
[312429954,1705871444131,-500.0,0.00038709,2]
[312429955,1705871444140,-500.0,0.00038709,2]
[312429956,1705871444150,-500.0,0.00038709,2]
[312429957,1705871444160,-500.0,0.00038709,2]
[312429958,1705871444169,-500.0,0.00038709,2]
[312429959,1705871444178,-500.0,0.00038709,2]
[312429960,1705871444188,-500.0,0.00038709,2]
[312429961,1705871444197,-500.0,0.00038709,2]
[312429962,1705871444206,-500.0,0.00038709,2]
[312429963,1705871444215,-500.0,0.00038709,2]
[312429964,1705871444224,-500.0,0.00038709,2]
[312429965,1705871444234,-500.0,0.00038709,2]
[312429966,1705871444243,-500.0,0.00038709,2]
[312429967,1705871444253,-500.0,0.00038709,2]
[312429968,1705871444262,-500.0,0.00038709,2]
[312429969,1705871444271,-500.0,0.00038709,2]
[312429970,1705871444280,-500.0,0.00038709,2]
[312429971,1705871444290,-500.0,0.00038709,2]
[312429972,1705871444299,-500.0,0.00038709,2]
[312429973,1705871444308,-500.0,0.00038709,2]
[312429974,1705871444317,-500.0,0.00038709,2]
[312429975,1705871444326,-500.0,0.00038709,2]
[312429976,1705871444336,-500.0,0.00038709,2]
[312429977,1705871444350,-500.0,0.00038709,2]
[312429978,1705871444359,-500.0,0.00038709,2]
[312429979,1705871444369,-500.0,0.00038709,2]
[312429980,1705871444379,-500.0,0.00038709,2]
[312429981,1705871444388,-500.0,0.00038709,2]
[312429982,1705871444398,-500.0,0.00038709,2]
[312429983,1705871444408,-500.0,0.00038709,2]
[312429984,1705871444420,-500.0,0.00038709,2]
[312429985,1705871444431,-500.0,0.00038709,2]
[312429986,1705871444441,-500.0,0.00038709,2]
[312429987,1705871444450,-500.0,0.00038709,2]
[312429988,1705871444460,-500.0,0.00038709,2]
[312429989,1705871444470,-500.0,0.00038709,2]
[312429990,1705871444588,-500.0,0.00038709,2]
[312429991,1705871444597,-6850.29089009,0.00038709,2]
[312429992,1705871444608,-2200.0,0.00038779,6]
[312429993,1705871444618,-204.0,0.00038782,16]
[312429994,1705871444628,-439.64576117,0.00038823,9]
[312429995,1705871444639,-157.066317,0.0003888,2]
[312429996,1705871444648,-281.99182628,0.0003898,2]
[312429997,1705871444658,-1428.71461591,0.00039,2]
[312429998,1705871444667,-1000.0,0.00039,9]
[312429999,1705871444676,-3410.34289108,0.0003902,12]
[312430000,1705871444686,-500.0,0.00039068,2]
[312430001,1705871444696,-200.0,0.00039203,20]
[312430002,1705871444706,-150.8623145,0.00039366,4]
[312430003,1705871444715,-156.25,0.00039555,2]
[312430004,1705871444724,-271.03,0.00039559,2]
[312430005,1705871444734,-255.18731033,0.00039561,2]
[312430006,1705871444743,-301.26295697,0.0004,14]
[312430007,1705871444753,-432.05261536,0.0004,10]
[312430008,1705871444763,-3232.46889612,0.0004,30]
[312430009,1705871444772,-22022.85823354,0.0004,4]
[312430010,1705871444781,-2269.30418644,0.0004,4]
[312430011,1705871444791,-2797.57385779,0.0004,5]
[312430012,1705871444801,-6287.54443503,0.0004,4]
[312430013,1705871444810,-54264.43228568,0.0004,4]
[312430014,1705871444819,-2678.17811978,0.0004,4]
[312430015,1705871444829,-257.66516504,0.0004,4]
[312430016,1705871444839,-1084.09238932,0.0004,4]
[312430017,1705871444848,-255.0,0.0004,12]
[312430018,1705871444857,-1000.0,0.0004,9]
[312430019,1705871444867,-255.0,0.0004,12]
[312430020,1705871444876,-795.0,0.0004,10]
[312430021,1705871444885,-255.0,0.0004,12]
[312430022,1705871444894,-255.0,0.0004,12]
[312430023,1705871444903,-411.69,0.00040349,15]
[312430024,1705871444913,-150.8623145,0.00040406,8]
[312430025,1705871444923,-1000.0,0.00040499,2]
[312430026,1705871444932,-1521.0,0.000405,7]
[312430027,1705871444942,-500.0,0.0004054,2]
[312430028,1705871444952,-200.0,0.0004054,20]
[312430029,1705871444961,-800.0,0.0004054,15]
[312430030,1705871444970,-172.72,0.000406,7]
[312430031,1705871444980,-158.0,0.000406,7]
[312430032,1705871444989,-150.62584698,0.00040684,2]
[312430033,1705871444999,-241.18,0.000407,7]
[312430034,1705871445009,-169.64,0.000407,7]
[312430035,1705871445019,-153.02,0.000408,4]
[312430036,1705871445028,-153.02,0.000408,4]
[312430037,1705871445038,-3410.34289108,0.00040829,14]
[312430038,1705871445047,-614.0,0.0004099,3]
[312430039,1705871445056,-1000.0,0.00040999,2]
[312430040,1705871445065,-3441.72254948,0.00041,4]
[312430041,1705871445074,-2239.88,0.00041085,10]
[312430042,1705871445084,-433.36570691,0.00041093,2]
[312430043,1705871445093,-619.275,0.00041093,4]
[312430044,1705871445103,-192.91071175,0.00041093,2]
[312430045,1705871445112,-196.43616915,0.00041093,4]
[312430046,1705871445121,-150.0,0.00041094,3]
[312430047,1705871445131,-150.0,0.00041094,3]
[312430048,1705871445140,-150.0,0.00041094,3]
[312430049,1705871445150,-150.0,0.00041094,3]
[312430050,1705871445162,-500.0,0.00041095,31]
[312430051,1705871445171,-500.0,0.00041095,31]
[312430052,1705871445182,-500.0,0.00041095,30]
[312430053,1705871445192,-579.6388567,0.00041095,31]
[312430054,1705871445202,-500.0,0.00041095,31]
[312430055,1705871445212,-475.40147939,0.00041095,31]
[312430056,1705871445223,-500.0,0.00041095,31]
[312430057,1705871445233,-500.0,0.00041095,31]
[312430058,1705871445242,-173.75212452,0.00041095,31]
[312430059,1705871445252,-500.0,0.00041095,31]
[312430060,1705871445261,-500.0,0.00041095,31]
[312430061,1705871445271,-500.0,0.00041095,31]
[312430062,1705871445281,-500.0,0.00041095,31]
[312430063,1705871445290,-500.0,0.00041095,31]
[312430064,1705871445299,-500.0,0.00041095,31]
[312430065,1705871445308,-526.73303124,0.00041095,31]
[312430066,1705871445318,-512.17619711,0.00041095,31]
[312430067,1705871445327,-500.0,0.00041095,31]
[312430068,1705871445341,-500.0,0.00041095,31]
[312430069,1705871445350,-500.0,0.00041095,31]
[312430070,1705871445360,-500.0,0.00041095,31]
[312430071,1705871445369,-500.0,0.00041095,31]
[312430072,1705871445380,-500.0,0.00041095,31]
[312430073,1705871445389,-500.0,0.00041095,31]
[312430074,1705871445399,-500.0,0.00041095,31]
[312430075,1705871445410,-500.0,0.00041095,31]
[312430076,1705871445421,-500.0,0.00041095,31]
[312430077,1705871445430,-500.0,0.00041095,31]
[312430078,1705871445439,-500.0,0.00041095,31]
[312430079,1705871445449,-225.42220388,0.00041095,31]
[312430080,1705871445459,-500.0,0.00041095,31]
[312430081,1705871445468,-253.01152683,0.00041095,31]
[312430082,1705871445478,-500.0,0.00041095,31]
[312430083,1705871445488,-500.0,0.00041095,31]
[312430084,1705871445496,-500.0,0.00041095,31]
[312430085,1705871445506,-500.0,0.00041095,31]
[312430086,1705871445515,-511.53824408,0.00041095,31]
[312430087,1705871445524,-555.27118206,0.00041095,31]
[312430088,1705871445533,-500.0,0.00041095,31]
[312430089,1705871445542,-500.0,0.00041095,31]
[312430090,1705871445551,-500.04127049,0.00041095,31]
[312430091,1705871445561,-513.66349229,0.00041095,31]
[312430092,1705871445570,-500.0,0.00041095,31]
[312430093,1705871445579,-500.0,0.00041095,31]
[312430094,1705871445589,-500.0,0.00041095,31]
[312430095,1705871445598,-500.0,0.00041095,31]
[312430096,1705871445608,-500.0,0.00041095,31]
[312430097,1705871445617,-500.0,0.00041095,31]
[312430098,1705871445626,-500.0,0.00041095,31]
[312430099,1705871445636,-514.56625094,0.00041095,31]
[312430100,1705871445645,-500.0,0.00041095,31]
[312430101,1705871445656,-500.0,0.00041095,31]
[312430102,1705871445665,-500.0,0.00041095,31]
[312430103,1705871445674,-500.0,0.00041095,31]
[312430104,1705871445685,-500.0,0.00041095,31]
[312430105,1705871445695,-500.0,0.00041095,31]
[312430106,1705871445705,-500.0,0.00041095,31]
[312430107,1705871445715,-500.0,0.00041095,31]
[312430108,1705871445724,-500.0,0.00041095,31]
[312430109,1705871445734,-675.52,0.00041095,31]
[312430110,1705871445743,-500.0,0.00041095,31]
[312430111,1705871445752,-500.0,0.00041095,31]
[312430112,1705871445762,-500.0,0.00041095,31]
[312430113,1705871445772,-500.0,0.00041095,31]
[312430114,1705871445781,-500.0,0.00041095,31]
[312430115,1705871445790,-500.0,0.00041095,31]
[312430116,1705871445800,-500.0,0.00041095,31]
[312430117,1705871445809,-162.31399823,0.00041095,31]
[312430118,1705871445818,-500.0,0.00041095,31]
[312430119,1705871445827,-500.0,0.00041095,31]
[312430120,1705871445837,-252.05,0.00041095,30]
[312430121,1705871445846,-432.90302295,0.00041095,31]
[312430122,1705871445856,-508.03576897,0.00041095,31]
[312430123,1705871445865,-497.34723539,0.00041095,31]
[312430124,1705871445874,-500.0,0.00041095,31]
[312430125,1705871445884,-500.0,0.00041095,31]
[312430126,1705871445892,-206.6326065,0.00041095,31]
[312430127,1705871445902,-500.0,0.00041095,31]
[312430128,1705871445911,-500.0,0.00041095,31]
[312430129,1705871445920,-500.0,0.00041095,31]
[312430130,1705871445930,-414.02400438,0.00041095,31]
[312430131,1705871445939,-715.06,0.00041095,31]
[312430132,1705871445948,-500.0,0.00041095,31]
[312430133,1705871445957,-500.0,0.00041095,31]
[312430134,1705871445967,-500.0,0.00041095,31]
[312430135,1705871445976,-500.0,0.00041095,31]
[312430136,1705871445985,-500.0,0.00041095,31]
[312430137,1705871445994,-500.0,0.00041095,31]
[312430138,1705871446003,-500.0,0.00041095,31]
[312430139,1705871446012,-500.0,0.00041095,31]
[312430140,1705871446022,-500.0,0.00041095,31]
[312430141,1705871446030,-500.0,0.00041095,31]
[312430142,1705871446040,-500.0,0.00041095,31]
[312430143,1705871446049,-500.0,0.00041095,31]
[312430144,1705871446058,-500.0,0.00041095,31]
[312430145,1705871446067,-500.0,0.00041095,31]
[312430146,1705871446076,-500.0,0.00041095,31]
[312430147,1705871446085,-500.0,0.00041095,31]
[312430148,1705871446096,-500.0,0.00041095,31]
[312430149,1705871446105,-500.0,0.00041095,31]
[312430150,1705871446114,-500.0,0.00041095,31]
[312430151,1705871446124,-500.0,0.00041095,31]
[312430152,1705871446133,-500.0,0.00041095,31]
[312430153,1705871446142,-500.0,0.00041095,31]
[312430154,1705871446151,-500.0,0.00041095,31]
[312430155,1705871446161,-500.0,0.00041095,31]
[312430156,1705871446171,-1167.37,0.00041095,31]
[312430157,1705871446180,-500.0,0.00041095,31]
[312430158,1705871446190,-500.0,0.00041095,31]
[312430159,1705871446199,-500.0,0.00041095,31]
[312430160,1705871446209,-500.0,0.00041095,31]
[312430161,1705871446219,-500.0,0.00041095,31]
[312430162,1705871446228,-500.0,0.00041095,31]
[312430163,1705871446238,-500.0,0.00041095,31]
[312430164,1705871446247,-500.0,0.00041095,31]
[312430165,1705871446257,-500.0,0.00041095,31]
[312430166,1705871446266,-500.0,0.00041095,31]
[312430167,1705871446276,-500.0,0.00041095,31]
[312430168,1705871446285,-500.0,0.00041095,31]
[312430169,1705871446294,-500.0,0.00041095,31]
[312430170,1705871446303,-500.0,0.00041095,31]
[312430171,1705871446312,-500.0,0.00041095,31]
[312430172,1705871446321,-500.0,0.00041095,31]
[312430173,1705871446331,-500.0,0.00041095,31]
[312430174,1705871446341,-535.21288131,0.00041095,31]
[312430175,1705871446353,-500.0,0.00041095,31]
[312430176,1705871446363,-500.0,0.00041095,31]
[312430177,1705871446373,-500.0,0.00041095,31]
[312430178,1705871446383,-500.0,0.00041095,31]
[312430179,1705871446393,-500.0,0.00041095,31]
[312430180,1705871446402,-500.0,0.00041095,31]
[312430181,1705871446412,-500.0,0.00041095,31]
[312430182,1705871446423,-500.0,0.00041095,31]
[312430183,1705871446433,-500.0,0.00041095,31]
[312430184,1705871446442,-500.0,0.00041095,31]
[312430185,1705871446451,-500.0,0.00041095,7]
[312430186,1705871446460,-500.0,0.00041095,31]
[312430187,1705871446469,-1084.12,0.00041095,7]
[312430188,1705871446480,-500.0,0.00041095,31]
[312430189,1705871446490,-500.0,0.00041095,31]
[312430190,1705871446499,-500.0,0.00041095,31]
[312430191,1705871446508,-500.0,0.00041095,31]
[312430193,1705871446517,-623.7,0.00041095,31]
[312430195,1705871446526,-500.0,0.00041095,31]
[312430197,1705871446535,-500.0,0.00041095,31]
[312430199,1705871446544,-500.0,0.00041095,31]
[312430201,1705871446553,-500.0,0.00041095,31]
[312430202,1705871446563,-500.0,0.00041095,31]
[312430203,1705871446572,-500.0,0.00041095,20]
[312430204,1705871446581,-500.0,0.00041095,31]
[312430205,1705871446591,-500.0,0.00041095,31]
[312430206,1705871446600,-500.0,0.00041095,31]
[312430207,1705871446610,-500.0,0.00041095,31]
[312430208,1705871446619,-500.0,0.00041095,31]
[312430209,1705871446629,-500.0,0.00041095,31]
[312430210,1705871446638,-500.0,0.00041095,31]
[312430211,1705871446647,-500.0,0.00041095,31]
[312430212,1705871446657,-500.0,0.00041095,31]
[312430213,1705871446666,-500.0,0.00041095,31]
[312430214,1705871446675,-726.74,0.00041095,31]
[312430215,1705871446685,-500.0,0.00041095,31]
[312430216,1705871446694,-500.0,0.00041095,31]
[312430217,1705871446705,-500.0,0.00041095,31]
[312430218,1705871446714,-500.0,0.00041095,31]
[312430219,1705871446724,-500.0,0.00041095,31]
[312430220,1705871446734,-500.0,0.00041095,31]
[312430221,1705871446744,-500.0,0.00041095,31]
[312430222,1705871446754,-500.0,0.00041095,31]
[312430223,1705871446763,-500.0,0.00041095,31]
[312430224,1705871446773,-1043.82,0.00041095,31]
[312430225,1705871446782,-500.0,0.00041095,31]
[312430226,1705871446792,-500.0,0.00041095,31]
[312430227,1705871446801,-500.0,0.00041095,31]
[312430228,1705871446811,-714.78,0.00041095,31]
[312430229,1705871446821,-500.0,0.00041095,31]
[312430230,1705871446831,-500.08034439,0.00041095,31]
[312430231,1705871446841,-524.74065516,0.00041095,31]
[312430232,1705871446850,-500.0,0.00041095,31]
[312430233,1705871446859,-500.0,0.00041095,31]
[312430234,1705871446869,-500.0,0.00041095,31]
[312430235,1705871446879,-500.0,0.00041095,31]
[312430236,1705871446889,-500.0,0.00041095,31]
[312430237,1705871446898,-500.0,0.00041095,31]
[312430238,1705871446909,-500.0,0.00041095,31]
[312430239,1705871446918,-500.0,0.00041095,31]
[312430240,1705871446927,-523.26746958,0.00041095,31]
[312430241,1705871446938,-500.0,0.00041095,31]
[312430242,1705871446948,-500.0,0.00041095,31]
[312430243,1705871446958,-500.0,0.00041095,31]
[312430244,1705871446969,-2000.0,0.00041095,31]
[312430245,1705871446979,-1991.90784554,0.00041095,31]
[312430246,1705871446988,-500.0,0.00041095,31]
[312430247,1705871446998,-500.0,0.00041095,31]
[312430248,1705871447008,-500.0,0.00041095,31]
[312430249,1705871447017,-556.17,0.00041095,31]
[312430250,1705871447028,-500.0,0.00041095,31]
[312430251,1705871447037,-620.92,0.00041095,31]
[312430252,1705871447046,-500.0,0.00041095,31]
[312430253,1705871447056,-500.0,0.00041095,31]
[312430254,1705871447065,-500.0,0.00041095,31]
[312430255,1705871447075,-500.0,0.00041095,31]
[312430256,1705871447085,-500.0,0.00041095,31]
[312430257,1705871447095,-500.0,0.00041095,31]
[312430258,1705871447105,-500.0,0.00041095,31]
[312430259,1705871447114,-601.06,0.00041095,31]
[312430260,1705871447126,-500.0,0.00041095,31]
[312430261,1705871447136,-500.0,0.00041095,31]
[312430262,1705871447146,-500.0,0.00041095,31]
[312430263,1705871447156,-659.98,0.00041095,31]
[312430264,1705871447165,-210.38947636,0.00041095,31]
[312430265,1705871447175,-500.0,0.00041095,31]
[312430266,1705871447186,-500.0,0.00041095,31]
[312430267,1705871447196,-710.08,0.00041095,31]
[312430268,1705871447205,-500.0,0.00041095,10]
[312430269,1705871447215,-500.0,0.00041095,31]
[312430270,1705871447225,-500.0,0.00041095,31]
[312430271,1705871447235,-500.0,0.00041095,31]
[312430272,1705871447246,-671.32,0.00041095,31]
[312430273,1705871447255,-500.0,0.00041095,31]
[312430274,1705871447265,-500.0,0.00041095,31]
[312430275,1705871447275,-500.0,0.00041095,31]
[312430276,1705871447284,-500.0,0.00041095,31]
[312430277,1705871447293,-500.0,0.00041095,31]
[312430278,1705871447303,-500.0,0.00041095,31]
[312430279,1705871447312,-500.0,0.00041095,31]
[312430280,1705871447321,-338.20055564,0.00041095,31]
[312430281,1705871447331,-500.0,0.00041095,31]
[312430282,1705871447341,-500.0,0.00041095,31]
[312430283,1705871447352,-500.0,0.00041095,31]
[312430284,1705871447362,-500.0,0.00041095,31]
[312430285,1705871447371,-500.0,0.00041095,31]
[312430286,1705871447381,-500.0,0.00041095,31]
[312430287,1705871447390,-500.0,0.00041095,31]
[312430288,1705871447400,-500.0,0.00041095,31]
[312430289,1705871447410,-500.0,0.00041095,31]
[312430290,1705871447421,-500.0,0.00041095,31]
[312430291,1705871447432,-500.0,0.00041095,31]
[312430292,1705871447442,-446.98884904,0.00041095,31]
[312430293,1705871447451,-1009.65,0.00041095,31]
[312430294,1705871447461,-500.0,0.00041095,31]
[312430295,1705871447471,-524.62179858,0.00041095,31]
[312430296,1705871447480,-500.0,0.00041095,31]
[312430297,1705871447490,-500.0,0.00041095,31]
[312430298,1705871447499,-500.0,0.00041095,31]
[312430299,1705871447509,-643.79,0.00041095,31]
[312430300,1705871447519,-639.04,0.00041095,31]
[312430301,1705871447528,-500.0,0.00041095,31]
[312430302,1705871447538,-500.0,0.00041095,31]
[312430303,1705871447547,-500.0,0.00041095,31]
[312430304,1705871447557,-500.0,0.00041095,31]
[312430305,1705871447566,-500.0,0.00041095,31]
[312430306,1705871447576,-500.0,0.00041095,31]
[312430307,1705871447587,-500.0,0.00041095,31]
[312430308,1705871447596,-500.0,0.00041095,31]
[312430309,1705871447606,-500.0,0.00041095,31]
[312430310,1705871447616,-500.0,0.00041095,31]
[312430311,1705871447627,-500.0,0.00041095,31]
[312430312,1705871447636,-500.0,0.00041095,31]
[312430313,1705871447646,-500.0,0.00041095,31]
[312430314,1705871447655,-500.0,0.00041095,31]
[312430315,1705871447665,-500.0,0.00041095,31]
[312430316,1705871447675,-500.0,0.00041095,31]
[312430317,1705871447684,-500.0,0.00041095,31]
[312430318,1705871447693,-500.0,0.00041095,31]
[312430319,1705871447703,-506.52737749,0.00041095,31]